fUST/lending_fUST_20250203
["ID","MTS","AMOUNT","RATE_DAILY","PERIOD"]
[351408180,1738555849826,-500.0,0.00016849,2]
[351408181,1738555849835,-334.29824631,0.00016849,2]
[351408182,1738555849845,-500.0,0.00016849,2]
[351408183,1738555849855,-500.0,0.00016849,2]
[351408184,1738555849865,-500.0,0.00016849,2]
[351408185,1738555849875,-500.0,0.00016849,2]
[351408186,1738555849884,-6387.56,0.00016849,2]
[351408187,1738555849894,-500.0,0.00016849,2]
[351408188,1738555849903,-608.72,0.00016849,2]
[351408189,1738555849912,-500.0,0.00016849,2]
[351408190,1738555849922,-500.0,0.00016849,2]
[351408191,1738555849932,-774.66,0.00016849,2]
[351408192,1738555849942,-367.44592442,0.00016849,2]
[351408193,1738555849953,-500.0,0.00016849,2]
[351408194,1738555849963,-426.08904259,0.00016849,2]
[351408195,1738555849975,-500.0,0.00016849,2]
[351408196,1738555849984,-617.82,0.00016849,2]
[351408197,1738555849994,-500.0,0.00016849,2]
[351408198,1738555850004,-651.47,0.00016849,2]
[351408199,1738555850013,-500.0,0.00016849,2]
[351408200,1738555850023,-2092.39,0.00016849,2]
[351408201,1738555850034,-505.85,0.00016849,2]
[351408202,1738555850044,-2960.21,0.00016849,2]
[351408203,1738555850053,-625.31099853,0.00016849,2]
[351408204,1738555850063,-506.93,0.00016849,2]
[351408205,1738555850072,-592.66,0.00016849,2]
[351408206,1738555850082,-997.46,0.00016849,2]
[351408207,1738555850092,-500.0,0.00016849,2]
[351408208,1738555850101,-15943.45,0.00016849,2]
[351408209,1738555850110,-500.0,0.00016849,2]
[351408210,1738555850121,-500.0,0.00016849,2]
[351408211,1738555850130,-500.0,0.00016849,2]
[351408212,1738555850140,-983.9,0.00016849,2]
[351408213,1738555850150,-500.0,0.00016849,2]
[351408214,1738555850160,-587.49,0.00016849,2]
[351408215,1738555850170,-500.0,0.00016849,2]
[351408216,1738555850180,-8486.07,0.00016849,2]
[351408217,1738555850189,-500.0,0.00016849,2]
[351408218,1738555850199,-879.39,0.00016849,2]
[351408219,1738555850209,-555.6,0.00016849,2]
[351408220,1738555850220,-500.0,0.00016849,2]
[351408221,1738555850230,-892.31,0.00016849,2]
[351408222,1738555850240,-1236.45,0.00016849,2]
[351408223,1738555850250,-500.0,0.00016849,2]
[351408224,1738555850260,-500.0,0.00016849,2]
[351408225,1738555850269,-1792.91,0.00016849,2]
[351408226,1738555850279,-500.0,0.00016849,2]
[351408227,1738555850289,-3090.85,0.00016849,2]
[351408228,1738555850299,-500.0,0.00016849,2]
[351408229,1738555850309,-500.0,0.00016849,2]
[351408230,1738555850319,-500.0,0.00016849,2]
[351408231,1738555850329,-1807.19,0.00016849,2]
[351408232,1738555850339,-4198.9,0.00016849,2]
[351408233,1738555850349,-500.0,0.00016849,2]
[351408234,1738555850359,-791.39,0.00016849,2]
[351408235,1738555850368,-500.0,0.00016849,2]
[351408236,1738555850378,-500.0,0.00016849,2]
[351408237,1738555850388,-654.36,0.00016849,2]
[351408238,1738555850398,-500.0,0.00016849,2]
[351408239,1738555850408,-500.0,0.00016849,2]
[351408240,1738555850419,-692.24,0.00016849,2]
[351408241,1738555850429,-229.27798664,0.00016849,2]
[351408242,1738555850439,-500.0,0.00016849,2]
[351408243,1738555850448,-500.0,0.00016849,2]
[351408244,1738555850459,-519.77938809,0.00016849,2]
[351408245,1738555850468,-500.0,0.00016849,2]
[351408246,1738555850479,-500.0,0.00016849,2]
[351408247,1738555850488,-2022.81,0.00016849,2]
[351408248,1738555850498,-500.0,0.00016849,2]
[351408249,1738555850507,-500.0,0.00016849,2]
[351408250,1738555850518,-500.0,0.00016849,2]
[351408251,1738555850528,-500.0,0.00016849,2]
[351408252,1738555850538,-1224.59,0.00016849,2]
[351408253,1738555850548,-1906.95,0.00016849,2]
[351408254,1738555850558,-603.27,0.00016849,2]
[351408255,1738555850568,-500.0,0.00016849,2]
[351408256,1738555850577,-664.64,0.00016849,2]
[351408257,1738555850587,-500.0,0.00016849,2]
[351408258,1738555850597,-500.0,0.00016849,2]
[351408259,1738555850607,-1476.79,0.00016849,2]
[351408260,1738555850616,-500.0,0.00016849,2]
[351408261,1738555850626,-196.56052461,0.00016849,2]
[351408262,1738555850636,-3273.1,0.00016849,2]
[351408263,1738555850646,-287.58465036,0.00016849,2]
[351408264,1738555850656,-609.92308033,0.00016849,2]
[351408265,1738555850665,-358.38908349,0.00016886,2]
[351408266,1738555850675,-415.4458947,0.00016904,2]
[351408267,1738555850793,-504.51697471,0.00016985,2]
[351408268,1738555850804,-500.0,0.00016986,2]
[351408269,1738555850814,-500.0,0.00016986,2]
[351408270,1738555850824,-634.12273428,0.00016986,2]
[351408271,1738555850833,-500.0,0.00016986,2]
[351408272,1738555850842,-500.0,0.00016986,2]
[351408273,1738555850852,-500.0,0.00016986,2]
[351408274,1738555850862,-500.0,0.00016986,2]
[351408275,1738555850871,-500.0,0.00016986,2]
[351408276,1738555850881,-500.0,0.00016986,2]
[351408277,1738555850890,-500.0,0.00016986,2]
[351408278,1738555850899,-500.0,0.00016986,2]
[351408279,1738555850908,-500.0,0.00016986,2]
[351408280,1738555850918,-500.0,0.00016986,2]
[351408281,1738555850928,-500.0,0.00016986,2]
[351408282,1738555850940,-500.0,0.00016986,2]
[351408283,1738555850951,-500.0,0.00016986,2]
[351408284,1738555850960,-500.0,0.00016986,2]
[351408285,1738555850971,-500.0,0.00016986,2]
[351408286,1738555850983,-500.0,0.00016986,2]
[351408287,1738555850993,-500.0,0.00016986,2]
[351408288,1738555851003,-500.0,0.00016986,2]
[351408289,1738555851013,-500.0,0.00016986,2]
[351408290,1738555851023,-500.0,0.00016986,2]
[351408291,1738555851033,-500.0,0.00016986,2]
[351408292,1738555851044,-730.13,0.00016986,2]
[351408293,1738555851057,-680.56,0.00016986,2]
[351408294,1738555851066,-500.0,0.00016986,2]
[351408295,1738555851082,-500.0,0.00016986,2]
[351408296,1738555851091,-511.46489255,0.00016986,2]
[351408297,1738555851101,-638.75,0.00016986,2]
[351408298,1738555851111,-500.0,0.00016986,2]
[351408299,1738555851121,-500.0,0.00016986,2]
[351408300,1738555851131,-500.0,0.00016986,2]
[351408301,1738555851140,-500.0,0.00016986,2]
[351408302,1738555851149,-500.0,0.00016986,2]
[351408303,1738555851158,-500.0,0.00016986,2]
[351408304,1738555851168,-500.0,0.00016986,2]
[351408305,1738555851178,-500.0,0.00016986,2]
[351408306,1738555851188,-6387.56,0.00016986,2]
[351408307,1738555851197,-500.0,0.00016986,2]
[351408308,1738555851207,-608.72,0.00016986,2]
[351408309,1738555851216,-500.0,0.00016986,2]
[351408310,1738555851230,-500.0,0.00016986,2]
[351408311,1738555851239,-774.66,0.00016986,2]
[351408312,1738555851249,-266.07701432,0.00016986,2]
[351408313,1738555851259,-500.0,0.00016986,2]
[351408314,1738555851269,-617.82,0.00016986,2]
[351408315,1738555851278,-500.0,0.00016986,2]
[351408316,1738555851287,-651.47,0.00016986,2]
[351408317,1738555851297,-500.0,0.00016986,2]
[351408318,1738555851307,-2092.39,0.00016986,2]
[351408319,1738555851316,-505.85,0.00016986,2]
[351408320,1738555851326,-2960.21,0.00016986,2]
[351408321,1738555851336,-506.93,0.00016986,2]
[351408322,1738555851346,-592.66,0.00016986,2]
[351408323,1738555851355,-997.46,0.00016986,2]
[351408324,1738555851365,-500.0,0.00016986,2]
[351408325,1738555851375,-15943.45,0.00016986,2]
[351408326,1738555851384,-500.0,0.00016986,2]
[351408327,1738555851394,-500.0,0.00016986,2]
[351408328,1738555851403,-983.9,0.00016986,2]
[351408329,1738555851413,-500.0,0.00016986,2]
[351408330,1738555851422,-587.49,0.00016986,2]
[351408331,1738555851431,-500.0,0.00016986,2]
[351408332,1738555851441,-8486.07,0.00016986,2]
[351408333,1738555851451,-500.0,0.00016986,2]
[351408334,1738555851460,-879.39,0.00016986,2]
[351408335,1738555851472,-555.6,0.00016986,2]
[351408336,1738555851482,-500.0,0.00016986,2]
[351408337,1738555851491,-892.31,0.00016986,2]
[351408338,1738555851501,-1236.45,0.00016986,2]
[351408339,1738555851513,-500.0,0.00016986,2]
[351408340,1738555851523,-1792.91,0.00016986,2]
[351408341,1738555851533,-500.0,0.00016986,2]
[351408342,1738555851543,-3090.85,0.00016986,2]
[351408343,1738555851552,-500.0,0.00016986,2]
[351408344,1738555851561,-500.0,0.00016986,2]
[351408345,1738555851572,-1807.19,0.00016986,2]
[351408346,1738555851581,-4198.9,0.00016986,2]
[351408347,1738555851591,-500.0,0.00016986,2]
[351408348,1738555851601,-791.39,0.00016986,2]
[351408349,1738555851611,-500.0,0.00016986,2]
[351408350,1738555851620,-500.0,0.00016986,2]
[351408351,1738555851630,-654.36,0.00016986,2]
[351408352,1738555851640,-500.0,0.00016986,2]
[351408353,1738555851650,-500.0,0.00016986,2]
[351408354,1738555851660,-692.24,0.00016986,2]
[351408355,1738555851670,-513.07983784,0.00016986,2]
[351408356,1738555851681,-500.0,0.00016986,2]
[351408357,1738555851690,-522.25077082,0.00016986,2]
[351408358,1738555851699,-500.0,0.00016986,2]
[351408359,1738555851709,-2022.81,0.00016986,2]
[351408360,1738555851718,-500.0,0.00016986,2]
[351408361,1738555851730,-500.0,0.00016986,2]
[351408362,1738555851739,-500.0,0.00016986,2]
[351408363,1738555851749,-521.91521285,0.00016986,2]
[351408364,1738555851758,-1224.59,0.00016986,2]
[351408365,1738555851768,-1906.95,0.00016986,2]
[351408366,1738555851778,-603.27,0.00016986,2]
[351408367,1738555851787,-500.0,0.00016986,2]
[351408368,1738555851797,-664.64,0.00016986,2]
[351408369,1738555851807,-648.70915835,0.00016986,2]
[351408370,1738555851817,-500.0,0.00016986,2]
[351408371,1738555851827,-1476.79,0.00016986,2]
[351408372,1738555851837,-500.0,0.00016986,2]
[351408373,1738555851847,-3273.1,0.00016986,2]
[351408374,1738555851856,-1000.0,0.00017021,2]
[351408375,1738555851865,-1002.30233845,0.00017021,2]
[351408376,1738555851875,-153.0,0.00017031,2]
[351408377,1738555851885,-354.5475049,0.00017041,2]
[351408378,1738555851895,-700.4883554,0.00017096,2]
[351408379,1738555851905,-178.102,0.000171,2]
[351408380,1738555851914,-151.0,0.00017116,2]
[351408381,1738555851924,-151.0,0.00017116,2]
[351408382,1738555851933,-151.0,0.00017116,2]
[351408383,1738555851946,-151.0,0.00017116,2]
[351408384,1738555851956,-151.0,0.00017116,2]
[351408385,1738555851965,-151.0,0.00017116,2]
[351408386,1738555851978,-151.0,0.00017116,2]
[351408387,1738555851987,-151.0,0.00017116,2]
[351408388,1738555851997,-151.0,0.00017116,2]
[351408389,1738555852006,-151.0,0.00017116,2]
[351408390,1738555852015,-151.0,0.00017116,2]
[351408391,1738555852025,-151.0,0.00017116,2]
[351408392,1738555852034,-151.0,0.00017116,2]
[351408393,1738555852044,-151.0,0.00017116,2]
[351408394,1738555852054,-151.0,0.00017116,2]
[351408395,1738555852068,-151.0,0.00017116,2]
[351408396,1738555852081,-266.98,0.00017116,2]
[351408397,1738555852095,-153.0,0.00017116,2]
[351408398,1738555852111,-153.0,0.00017116,2]
[351408399,1738555852122,-153.0,0.00017116,2]
[351408400,1738555852136,-153.0,0.00017116,2]
[351408401,1738555852148,-153.0,0.00017116,2]
[351408402,1738555852162,-231.0,0.00017116,2]
[351408403,1738555852176,-500.0,0.00017123,2]
[351408404,1738555852189,-363.06676236,0.00017123,2]
[351408405,1738555852202,-500.0,0.00017123,2]
[351408406,1738555852216,-500.0,0.00017123,2]
[351408407,1738555852231,-500.0,0.00017123,2]
[351408408,1738555852244,-500.0,0.00017123,2]
[351408409,1738555852256,-500.0,0.00017123,2]
[351408410,1738555852269,-500.0,0.00017123,2]
[351408411,1738555852282,-500.0,0.00017123,2]
[351408412,1738555852294,-500.0,0.00017123,2]
[351408413,1738555852305,-500.0,0.00017123,2]
[351408414,1738555852315,-500.0,0.00017123,2]
[351408415,1738555852328,-500.0,0.00017123,2]
[351408416,1738555852340,-500.0,0.00017123,2]
[351408417,1738555852353,-500.0,0.00017123,2]
[351408418,1738555852366,-500.0,0.00017123,2]
[351408419,1738555852379,-312.0,0.00017123,2]
[351408420,1738555852393,-500.0,0.00017123,2]
[351408421,1738555852407,-500.0,0.00017123,2]
[351408422,1738555852421,-500.0,0.00017123,2]
[351408423,1738555852431,-730.13,0.00017123,2]
[351408424,1738555852442,-680.56,0.00017123,2]
[351408425,1738555852453,-500.0,0.00017123,2]
[351408426,1738555852466,-500.0,0.00017123,2]
[351408427,1738555852486,-638.75,0.00017123,2]
[351408428,1738555852500,-500.0,0.00017123,2]
[351408429,1738555852510,-500.0,0.00017123,2]
[351408430,1738555852522,-485.66,0.00017123,2]
[351408431,1738555852534,-500.0,0.00017123,2]
[351408432,1738555852548,-500.0,0.00017123,2]
[351408433,1738555852559,-626.54902045,0.00017123,2]
[351408434,1738555852570,-500.0,0.00017123,2]
[351408435,1738555852582,-6387.56,0.00017123,2]
[351408436,1738555852595,-500.0,0.00017123,2]
[351408437,1738555852607,-608.72,0.00017123,2]
[351408438,1738555852620,-500.0,0.00017123,2]
[351408439,1738555852632,-500.0,0.00017123,2]
[351408440,1738555852643,-774.66,0.00017123,2]
[351408441,1738555852655,-500.0,0.00017123,2]
[351408442,1738555852666,-617.82,0.00017123,2]
[351408443,1738555852678,-295.56942474,0.00017123,2]
[351408444,1738555852690,-651.47,0.00017123,2]
[351408445,1738555852701,-500.0,0.00017123,2]
[351408446,1738555852713,-2092.39,0.00017123,2]
[351408447,1738555852727,-505.85,0.00017123,2]
[351408448,1738555852739,-2960.21,0.00017123,2]
[351408449,1738555852750,-506.93,0.00017123,2]
[351408450,1738555852762,-592.66,0.00017123,2]
[351408451,1738555852774,-997.46,0.00017123,2]
[351408452,1738555852785,-500.0,0.00017123,2]
[351408453,1738555852796,-15943.45,0.00017123,2]
[351408454,1738555852808,-500.0,0.00017123,2]
[351408455,1738555852819,-500.0,0.00017123,2]
[351408456,1738555852831,-983.9,0.00017123,2]
[351408457,1738555852842,-500.0,0.00017123,2]
[351408458,1738555852853,-587.49,0.00017123,2]
[351408459,1738555852865,-429.25498124,0.00017123,2]
[351408460,1738555852876,-8486.07,0.00017123,2]
[351408461,1738555852887,-500.0,0.00017123,2]
[351408462,1738555852899,-879.39,0.00017123,2]
[351408463,1738555852910,-555.6,0.00017123,2]
[351408464,1738555852921,-500.0,0.00017123,2]
[351408465,1738555852932,-892.31,0.00017123,2]
[351408466,1738555852943,-1236.45,0.00017123,2]
[351408467,1738555852961,-500.0,0.00017123,2]
[351408468,1738555852973,-1792.91,0.00017123,2]
[351408469,1738555852985,-3090.85,0.00017123,2]
[351408470,1738555852997,-500.0,0.00017123,2]
[351408471,1738555853009,-1807.19,0.00017123,2]
[351408472,1738555853022,-551.6519331,0.00017123,2]
[351408473,1738555853034,-4198.9,0.00017123,2]
[351408474,1738555853046,-791.39,0.00017123,2]
[351408475,1738555853057,-500.0,0.00017123,2]
[351408476,1738555853069,-500.0,0.00017123,2]
[351408477,1738555853080,-654.36,0.00017123,2]
[351408478,1738555853091,-500.0,0.00017123,2]
[351408479,1738555853103,-500.0,0.00017123,2]
[351408480,1738555853114,-692.24,0.00017123,2]
[351408481,1738555853126,-500.0,0.00017123,2]
[351408482,1738555853138,-500.0,0.00017123,2]
[351408483,1738555853150,-2022.81,0.00017123,2]
[351408484,1738555853161,-500.0,0.00017123,2]
[351408485,1738555853173,-500.0,0.00017123,2]
[351408486,1738555853184,-510.77215606,0.00017123,2]
[351408487,1738555853196,-1224.59,0.00017123,2]
[351408488,1738555853207,-1906.95,0.00017123,2]
[351408489,1738555853219,-603.27,0.00017123,2]
[351408490,1738555853232,-508.22207345,0.00017123,2]
[351408491,1738555853243,-664.64,0.00017123,2]
[351408492,1738555853255,-500.0,0.00017123,2]
[351408493,1738555853266,-1476.79,0.00017123,2]
[351408494,1738555853278,-500.0,0.00017123,2]
[351408495,1738555853290,-3273.1,0.00017123,2]
[351408496,1738555853301,-354.5475049,0.00017123,2]
[351408497,1738555853313,-709.0421093,0.00017123,2]
[351408498,1738555853324,-361.57944,0.00017178,2]
[351408499,1738555853335,-153.0,0.00017178,2]
[351408500,1738555853345,-154.4720971,0.00017178,2]
[351408501,1738555853357,-153.0,0.00017178,2]
[351408502,1738555853368,-215.6590378,0.00017178,2]
[351408503,1738555853379,-151.0,0.0001725,2]
[351408504,1738555853391,-151.0,0.0001726,2]
[351408505,1738555853402,-151.0,0.0001726,2]
[351408506,1738555853413,-157.042487,0.0001726,2]
[351408507,1738555853425,-290.07180557,0.0001726,2]
[351408508,1738555853436,-500.0,0.0001726,2]
[351408509,1738555853447,-500.0,0.0001726,2]
[351408510,1738555853458,-500.0,0.0001726,2]
[351408511,1738555853470,-500.0,0.0001726,2]
[351408512,1738555853484,-500.0,0.0001726,2]
[351408513,1738555853495,-500.0,0.0001726,2]
[351408514,1738555853504,-500.0,0.0001726,2]
[351408515,1738555853513,-500.0,0.0001726,2]
[351408516,1738555853523,-500.0,0.0001726,2]
[351408517,1738555853532,-500.0,0.0001726,2]
[351408518,1738555853726,-500.0,0.0001726,2]
[351408519,1738555853739,-500.0,0.0001726,2]
[351408520,1738555853748,-500.0,0.0001726,2]
[351408521,1738555853758,-500.0,0.0001726,2]
[351408522,1738555853767,-500.0,0.0001726,2]
[351408523,1738555853777,-500.0,0.0001726,2]
[351408524,1738555853786,-500.0,0.0001726,2]
[351408525,1738555853795,-730.13,0.0001726,2]
[351408526,1738555853805,-680.56,0.0001726,2]
[351408527,1738555853814,-500.0,0.0001726,2]
[351408528,1738555853823,-500.0,0.0001726,2]
[351408529,1738555853832,-638.75,0.0001726,2]
[351408530,1738555853842,-500.0,0.0001726,2]
[351408531,1738555853851,-500.0,0.0001726,2]
[351408532,1738555853860,-500.0,0.0001726,2]
[351408533,1738555853870,-500.0,0.0001726,2]
[351408534,1738555853880,-500.0,0.0001726,2]
[351408535,1738555853889,-6387.56,0.0001726,2]
[351408536,1738555853899,-500.0,0.0001726,2]
[351408537,1738555853909,-608.72,0.0001726,2]
[351408538,1738555853919,-500.0,0.0001726,2]
[351408539,1738555853929,-500.0,0.0001726,2]
[351408540,1738555853942,-774.66,0.0001726,2]
[351408541,1738555853951,-500.0,0.0001726,2]
[351408542,1738555853961,-617.82,0.0001726,2]
[351408543,1738555853971,-651.47,0.0001726,2]
[351408544,1738555853983,-500.0,0.0001726,2]
[351408545,1738555853993,-2092.39,0.0001726,2]
[351408546,1738555854003,-505.85,0.0001726,2]
[351408547,1738555854013,-2960.21,0.0001726,2]
[351408548,1738555854023,-506.93,0.0001726,2]
[351408549,1738555854033,-592.66,0.0001726,2]
[351408550,1738555854043,-997.46,0.0001726,2]
[351408551,1738555854053,-500.0,0.0001726,2]
[351408552,1738555854062,-15943.45,0.0001726,2]
[351408553,1738555854072,-193.21539957,0.0001726,2]
[351408554,1738555854081,-500.0,0.0001726,2]
[351408555,1738555854091,-983.9,0.0001726,2]
[351408556,1738555854101,-156.48968797,0.0001726,2]
[351408557,1738555854111,-587.49,0.0001726,2]
[351408558,1738555854121,-8486.07,0.0001726,2]
[351408559,1738555854130,-500.0,0.0001726,2]
[351408560,1738555854140,-879.39,0.0001726,2]
[351408561,1738555854149,-555.6,0.0001726,2]
[351408562,1738555854159,-500.0,0.0001726,2]
[351408563,1738555854169,-892.31,0.0001726,2]
[351408564,1738555854178,-1236.45,0.0001726,2]
[351408565,1738555854188,-500.0,0.0001726,2]
[351408566,1738555854198,-1792.91,0.0001726,2]
[351408567,1738555854207,-3090.85,0.0001726,2]
[351408568,1738555854216,-500.0,0.0001726,2]
[351408569,1738555854228,-1807.19,0.0001726,2]
[351408570,1738555854238,-4198.9,0.0001726,2]
[351408571,1738555854248,-791.39,0.0001726,2]
[351408572,1738555854257,-500.0,0.0001726,2]
[351408573,1738555854267,-500.0,0.0001726,2]
[351408574,1738555854276,-654.36,0.0001726,2]
[351408575,1738555854286,-500.0,0.0001726,2]
[351408576,1738555854296,-692.24,0.0001726,2]
[351408577,1738555854305,-500.0,0.0001726,2]
[351408578,1738555854314,-409.59603303,0.0001726,2]
[351408579,1738555854324,-2022.81,0.0001726,2]
[351408580,1738555854334,-500.0,0.0001726,2]
[351408581,1738555854344,-500.0,0.0001726,2]
[351408582,1738555854353,-1224.59,0.0001726,2]
[351408583,1738555854363,-1906.95,0.0001726,2]
[351408584,1738555854373,-603.27,0.0001726,2]
[351408585,1738555854383,-664.64,0.0001726,2]
[351408586,1738555854392,-500.0,0.0001726,2]
[351408587,1738555854401,-1476.79,0.0001726,2]
[351408588,1738555854411,-500.0,0.0001726,2]
[351408589,1738555854422,-3273.1,0.0001726,2]
[351408590,1738555854431,-2051.107,0.00017268,2]
[351408591,1738555854441,-2303.0,0.00017268,2]
[351408592,1738555854451,-396.0,0.00017268,2]
[351408593,1738555854460,-151.057,0.00017337,2]
[351408594,1738555854470,-151.0,0.00017397,2]
[351408595,1738555854482,-500.0,0.00017397,2]
[351408596,1738555854491,-500.0,0.00017397,2]
[351408597,1738555854500,-607.39762311,0.00017397,2]
[351408598,1738555854510,-379.09059606,0.00017397,2]
[351408599,1738555854521,-500.0,0.00017397,2]
[351408600,1738555854531,-500.0,0.00017397,2]
[351408601,1738555854540,-500.0,0.00017397,2]
[351408602,1738555854550,-500.0,0.00017397,2]
[351408603,1738555854560,-500.0,0.00017397,2]
[351408604,1738555854570,-500.0,0.00017397,2]
[351408605,1738555854579,-500.0,0.00017397,2]
[351408606,1738555854589,-500.0,0.00017397,2]
[351408607,1738555854600,-500.0,0.00017397,2]
[351408608,1738555854610,-500.0,0.00017397,2]
[351408609,1738555854620,-500.0,0.00017397,2]
[351408610,1738555854629,-500.0,0.00017397,2]
[351408611,1738555854638,-730.13,0.00017397,2]
[351408612,1738555854648,-680.56,0.00017397,2]
[351408613,1738555854657,-500.0,0.00017397,2]
[351408614,1738555854666,-553.16016799,0.00017397,2]
[351408615,1738555854676,-638.75,0.00017397,2]
[351408616,1738555854686,-500.0,0.00017397,2]
[351408617,1738555854695,-500.0,0.00017397,2]
[351408618,1738555854705,-500.0,0.00017397,2]
[351408619,1738555854714,-500.0,0.00017397,2]
[351408620,1738555854725,-500.0,0.00017397,2]
[351408621,1738555854735,-6387.56,0.00017397,2]
[351408622,1738555854744,-596.95967371,0.00017397,2]
[351408623,1738555854754,-608.72,0.00017397,2]
[351408624,1738555854763,-500.0,0.00017397,2]
[351408625,1738555854773,-500.0,0.00017397,2]
[351408626,1738555854783,-774.66,0.00017397,2]
[351408627,1738555854792,-327.81420933,0.00017397,2]
[351408628,1738555854802,-617.82,0.00017397,2]
[351408629,1738555854811,-651.47,0.00017397,2]
[351408630,1738555854821,-500.0,0.00017397,2]
[351408631,1738555854830,-2092.39,0.00017397,2]
[351408632,1738555854840,-505.85,0.00017397,2]
[351408633,1738555854849,-2960.21,0.00017397,2]
[351408634,1738555854859,-506.93,0.00017397,2]
[351408635,1738555854868,-592.66,0.00017397,2]
[351408636,1738555854878,-997.46,0.00017397,2]
[351408637,1738555854887,-500.0,0.00017397,2]
[351408638,1738555854897,-15943.45,0.00017397,2]
[351408639,1738555854907,-500.0,0.00017397,2]
[351408640,1738555854916,-983.9,0.00017397,2]
[351408641,1738555854926,-587.49,0.00017397,2]
[351408642,1738555854935,-8486.07,0.00017397,2]
[351408643,1738555854945,-500.0,0.00017397,2]
[351408644,1738555854958,-879.39,0.00017397,2]
[351408645,1738555854967,-555.6,0.00017397,2]
[351408646,1738555854979,-607.31748656,0.00017397,2]
[351408647,1738555854989,-892.31,0.00017397,2]
[351408648,1738555855000,-1236.45,0.00017397,2]
[351408649,1738555855010,-508.84955975,0.00017397,2]
[351408650,1738555855020,-1792.91,0.00017397,2]
[351408651,1738555855030,-3090.85,0.00017397,2]
[351408652,1738555855040,-500.0,0.00017397,2]
[351408653,1738555855050,-1807.19,0.00017397,2]
[351408654,1738555855060,-4198.9,0.00017397,2]
[351408655,1738555855069,-791.39,0.00017397,2]
[351408656,1738555855079,-500.0,0.00017397,2]
[351408657,1738555855088,-500.0,0.00017397,2]
[351408658,1738555855098,-654.36,0.00017397,2]
[351408659,1738555855108,-500.0,0.00017397,2]
[351408660,1738555855118,-692.24,0.00017397,2]
[351408661,1738555855128,-237.46702092,0.00017397,2]
[351408662,1738555855137,-2022.81,0.00017397,2]
[351408663,1738555855147,-500.0,0.00017397,2]
[351408664,1738555855157,-1224.59,0.00017397,2]
[351408665,1738555855166,-1906.95,0.00017397,2]
[351408666,1738555855176,-603.27,0.00017397,2]
[351408667,1738555855185,-664.64,0.00017397,2]
[351408668,1738555855195,-500.0,0.00017397,2]
[351408669,1738555855205,-1476.79,0.00017397,2]
[351408670,1738555855215,-500.0,0.00017397,2]
[351408671,1738555855224,-3000.0,0.00017434,2]
[351408672,1738555855234,-150.0,0.00017438,2]
[351408673,1738555855243,-261.348,0.00017438,2]
[351408674,1738555855253,-540.569,0.00017438,2]
[351408675,1738555855263,-500.0,0.00017534,2]
[351408676,1738555855272,-500.0,0.00017534,2]
[351408677,1738555855282,-567.58062675,0.00017534,2]
[351408678,1738555855291,-500.0,0.00017534,2]
[351408679,1738555855301,-500.0,0.00017534,2]